bitfinex-derivatives/quotes_ETHF0:USTF0_20240907
["timestamp","ask_amount","ask_price","bid_price","bid_amount"]
[1725680178176,0.66735569,2239.4,2239.2,0.84358]
[1725680178681,0.22069569,2239.4,2239.3,0.44667]
[1725680181879,0.66734569,2239.4,2239.3,0.44667]
[1725680182085,0.44667,2239.3,2239.2,0.3969]
[1725680182393,0.44669,2239.2,2239.1,3.65451]
[1725680182586,0.83099,2239.2,2239.1,3.65451]
[1725680182986,0.83099,2239.2,2239.1,3.2078]
[1725680183285,0.3843,2239.2,2239.1,3.2078]
[1725680183481,0.3843,2239.2,2239.1,3.65451]
[1725680183681,0.83099,2239.2,2239.1,3.65451]
[1725680184083,0.3843,2239.2,2239.1,3.2078]
[1725680184284,0.3843,2239.2,2239.1,3.65451]
[1725680185491,0.3843,2239.2,2239.1,3.2078]
[1725680185492,0.83099,2239.2,2239.1,3.2078]
[1725680185682,1.22659,2239.2,2239.1,3.2078]
[1725680186079,1.22659,2239.2,2239.0,0.3907]
[1725680186295,1.29,2239.1,2239.0,0.83743]
[1725680186890,1.29,2239.1,2239.0,0.3907]
[1725680186891,1.73671,2239.1,2239.0,0.3907]
[1725680187093,1.29,2239.1,2239.0,0.44673]
[1725680192790,2.51661,2239.2,2239.0,0.44673]
[1725680193687,0.44671,2239.1,2238.9,1.19694]
[1725680197291,0.44673,2239.0,2238.9,0.7502]
[1725680197494,1.73673,2239.0,2238.9,0.3847]
[1725680198098,2.11343,2239.0,2238.9,0.3847]
[1725680199389,3.2078,2239.1,2238.9,0.3847]
[1725680199601,4.4978,2239.1,2238.9,0.3847]
[1725680199802,4.6791948,2239.0,2238.9,0.83145]
[1725680200199,1.29,2239.2,2238.9,0.3847]
[1725680200400,1.29,2239.2,2239.1,0.44671]
[1725680202906,5.16515569,2239.4,2239.2,0.44669]
[1725680203091,5.16515569,2239.4,2239.3,1.1508]
[1725680204003,5.16515569,2239.4,2239.3,0.3798]
[1725680204199,0.44668,2239.3,2239.1,0.4467]
[1725680204406,4.71849569,2239.4,2239.0,1.1539]
[1725680204407,1.73669,2239.2,2239.0,1.60062]
[1725680204599,1.73669,2239.2,2239.1,0.44671]
[1725680204600,1.29,2239.2,2239.1,0.44671]
[1725680205910,1.73669,2239.2,2239.0,1.60062]
[1725680208601,1.73669,2239.2,2239.0,1.1539]
[1725680208602,0.44671,2239.1,2239.0,1.1539]
[1725680209308,1.29,2239.2,2239.0,1.60063]
[1725680209309,1.73671,2239.2,2239.0,1.60063]
[1725680210203,0.44671,2239.1,2239.0,1.1539]
[1725680212504,3.42849569,2239.4,2239.0,1.1539]
[1725680212702,1.30642783,2239.3,2239.1,0.44671]
[1725680212909,1.29,2239.3,2239.1,0.44671]
[1725680213105,0.4467,2239.2,2239.1,0.44671]
[1725680213914,1.73669,2239.3,2239.1,0.44671]
[1725680214902,0.44669,2239.2,2239.0,1.1539]
[1725680215109,0.44669,2239.2,2239.1,0.44671]
[1725680215705,5.16516569,2239.4,2239.2,0.44669]
[1725680216007,5.16516569,2239.4,2239.3,0.3614]
[1725680216214,5.18159248,2239.4,2239.3,0.3614]
[1725680216704,5.18157248,2239.4,2239.3,0.3614]
[1725680216903,4.73492248,2239.4,2239.3,0.80807]
[1725680217104,4.73492205,2239.4,2239.3,0.80807]
[1725680217403,3.2078,2239.8,2239.3,4.827]
[1725680217602,1.29,2240.0,2239.4,2.0648]
[1725680217805,1.29,2240.0,2239.5,4.37486222]
[1725680218016,1.29,2240.0,2239.9,0.44656]
[1725680218214,1.52655368,2240.0,2239.9,0.44656]
[1725680218608,1.52655368,2240.0,2239.8,0.44656]
[1725680218914,4.4978,2240.3,2240.1,0.4465]
[1725680219107,0.01642073,2240.2,2240.1,0.4465]
[1725680219302,1.29,2240.3,2240.1,0.4465]
[1725680220316,1.73648,2240.3,2240.0,0.44652]
[1725680221810,1.73648,2240.3,2240.1,0.44651]
[1725680222520,1.29,2240.3,2240.1,0.44651]
[1725680222813,3.42701162,2240.6,2240.3,0.44646]
[1725680223016,3.42701162,2240.6,2239.9,2.33116222]
[1725680223017,3.2078,2240.6,2240.4,0.3884]
[1725680223316,3.2078,2240.6,2240.5,0.3696]
[1725680224212,0.44648,2240.3,2240.1,3.2078]
[1725680224409,1.73644,2240.5,2240.3,0.44647]
[1725680224618,1.73644,2240.5,2240.2,0.3648]
[1725680224619,1.73644,2240.5,2240.2,0.81128]
[1725680225809,0.44646,2240.4,2240.2,0.81128]
[1725680227018,1.73648,2240.3,2240.2,0.3648]
[1725680227225,2.11588,2240.3,2240.2,0.3648]
[1725680228319,4.8772,2240.3,2239.5,3.2078]
[1725680228514,1.73659,2239.8,2239.5,1.20463]
[1725680228715,0.4466,2239.7,2239.5,0.758]
[1725680229321,0.44661,2239.6,2239.3,0.44667]
[1725680229623,0.82411,2239.6,2239.4,0.44665]
[1725680231326,0.82411,2239.6,2239.3,0.81236]
[1725680236327,0.82411,2239.6,2239.4,0.44665]
[1725680236727,0.82411,2239.6,2239.3,0.81236]
[1725680237321,0.82411,2239.6,2239.4,0.44665]
[1725680237926,0.82411,2239.6,2239.3,0.3657]
[1725680237927,0.3775,2239.6,2239.5,0.44663]
[1725680238226,3.5992,2240.0,2239.7,0.44658]
[1725680238227,4.04576,2240.0,2239.7,0.44658]
[1725680238530,0.44656,2239.9,2239.7,0.44658]
[1725680239026,3.5992,2240.0,2239.6,0.3688]
[1725680239329,4.04574,2240.0,2239.8,0.44657]
[1725680240126,3.65434,2240.0,2239.8,0.44656]
[1725680241425,3.65434,2240.0,2239.7,0.3641]
[1725680241426,3.2078,2240.0,2239.9,0.44656]
[1725680241626,3.65434,2240.0,2239.8,0.44657]
[1725680243137,0.44654,2240.0,2239.8,0.44657]
[1725680249944,0.44656,2239.9,2239.8,0.44657]
[1725680250442,0.44656,2239.9,2239.8,4.91137]
[1725680250835,0.44656,2239.9,2239.8,0.44657]
[1725680251042,0.44656,2239.9,2239.8,4.91137]
[1725680251446,0.44656,2239.9,2239.8,0.44657]
[1725680251835,0.44656,2239.9,2239.8,4.91137]
[1725680252030,0.44656,2239.9,2239.8,0.44657]
[1725680252831,0.44656,2239.9,2239.8,4.91137]
[1725680253238,0.44656,2239.9,2239.8,0.44657]
[1725680253439,0.44656,2239.9,2239.7,0.81068]
[1725680253642,0.44656,2239.9,2239.7,5.27548]
[1725680254042,0.44656,2239.9,2239.8,0.44658]
[1725680254244,0.44655,2240.0,2239.8,0.44658]
[1725680254543,0.44656,2239.9,2239.7,0.81068]
[1725680254848,0.44656,2239.9,2239.8,0.44658]
[1725680255348,0.44656,2239.9,2239.8,4.91138]
[1725680256147,0.44656,2239.9,2239.8,0.44658]
[1725680256650,0.44656,2239.9,2239.8,4.91138]
[1725680257448,0.44656,2239.9,2239.8,0.44658]
[1725680257747,0.44656,2239.9,2239.8,4.91138]
[1725680257950,0.44656,2239.9,2239.8,0.44658]
[1725680258146,0.44656,2239.9,2239.8,4.91138]
[1725680258343,0.44656,2239.9,2239.8,0.44658]
[1725680258640,0.44656,2239.9,2239.7,0.81068]
[1725680258845,0.44656,2239.9,2239.7,5.27548]
[1725680259040,0.44656,2239.9,2239.7,0.81068]
[1725680259241,0.44658,2239.8,2239.7,0.3641]
[1725680259444,0.44663,2239.6,2239.4,0.44665]
[1725680259651,1.1333,2239.7,2239.4,0.82295]
[1725680259841,0.44661,2239.6,2239.4,0.82295]
[1725680263249,1.1333,2239.7,2239.5,0.44663]
[1725680263250,1.18581,2239.7,2239.5,0.44663]
[1725680263551,0.44661,2239.7,2239.5,0.44663]
[1725680263754,0.44661,2239.7,2239.6,0.3649]
[1725680264251,3.2078,2239.9,2239.7,0.44659]
[1725680264445,3.65436,2239.9,2239.8,0.7794]
[1725680265347,3.2078,2239.9,2239.8,1.22598]
[1725680265650,0.44655,2240.0,2239.8,1.22598]
[1725680267151,2.0544,2240.1,2239.8,1.22598]
[1725680267152,0.44656,2239.9,2239.8,1.22598]
[1725680267449,0.44656,2239.9,2239.8,0.3902]
[1725680275150,0.44656,2239.9,2239.8,0.83678]
[1725680280452,1.73656,2239.9,2239.8,0.3902]
[1725680280646,0.44659,2239.7,2239.6,0.7503]
[1725680280845,0.44659,2239.7,2239.6,0.3854]
[1725680282257,0.44659,2239.7,2239.6,0.83201]
[1725680282555,0.44659,2239.7,2239.6,1.55246222]
[1725680283151,0.7856,2239.8,2239.6,1.99906222]
[1725680283152,0.44658,2239.8,2239.6,1.99906222]
[1725680283350,0.3981,2240.0,2239.7,0.44659]
[1725680283547,0.44656,2239.9,2239.8,0.3748]
[1725680283859,0.44654,2240.0,2239.8,0.82137]
[1725680284163,0.44654,2240.0,2239.9,0.3668]
[1725680284350,0.44654,2240.0,2239.9,0.7421]
[1725680285364,4.41247077,2240.5,2239.9,5.2061]
[1725680285549,4.02504,2240.5,2240.3,0.44647]
[1725680285745,3.65424,2240.5,2240.4,0.3929]
[1725680285950,3.65424,2240.5,2240.4,1.1554]
[1725680286865,3.2078,2240.5,2240.4,6.06506]
[1725680287348,3.87322289,2240.8,2240.5,0.44643]
[1725680287747,3.2078,2240.8,2240.6,0.44641]
[1725680288056,3.2078,2240.8,2240.5,0.44643]
[1725680288558,3.65418,2240.8,2240.4,2.89185]
[1725680289059,0.44638,2240.8,2240.4,2.89185]
[1725680289361,0.44638,2240.8,2240.4,6.09965]
[1725680290363,0.44638,2240.8,2240.5,0.44644]
[1725680292967,0.44638,2240.8,2240.4,6.09964]
[1725680293470,0.44644,2240.5,2240.4,0.7597]
[1725680294553,0.44648,2240.3,2240.2,0.3812]
[1725680294873,0.44647,2240.4,2240.2,0.3812]
[1725680298060,0.44647,2240.4,2240.2,0.7668]
[1725680299760,0.44647,2240.4,2240.3,0.3909]
[1725680304267,0.44652,2240.1,2239.9,3.2078]
[1725680304569,0.44652,2240.1,2239.7,0.3983]
[1725680304570,0.44658,2239.8,2239.7,0.3983]
[1725680305777,0.40882229,2240.0,2239.7,4.8631]
[1725680306069,0.44656,2239.9,2239.7,0.3983]
[1725680306264,0.01642229,2240.0,2239.7,0.3983]
[1725680306470,0.44658,2239.8,2239.6,0.83831]
[1725680308773,0.44658,2239.8,2239.6,0.3917]
[1725680309369,0.44657,2239.9,2239.6,0.83831]
[1725680309571,0.44657,2239.9,2239.7,0.377]
[1725680311576,0.44654,2240.0,2239.8,0.44657]
[1725680311981,0.44654,2240.0,2239.7,0.377]
[1725680312175,1.11638,2240.0,2239.5,4.37486222]
[1725680312370,0.4466,2239.7,2239.5,4.03023]
[1725680312678,0.4466,2239.7,2239.5,5.19729222]
[1725680312867,0.4466,2239.7,2239.5,9.66209222]
[1725680313582,0.44659,2239.8,2239.6,4.91141]
[1725680313883,0.44659,2239.7,2239.5,5.19728222]
[1725680314269,0.44659,2239.7,2239.6,4.4648]
[1725680315981,0.44665,2239.4,2239.3,0.59576725]
[1725680316181,10.4978,2239.7,2238.8,3.9635]
[1725680316182,0.44668,2239.3,2238.8,3.9635]
[1725680316374,0.4467,2239.2,2238.8,3.9635]
[1725680316790,0.4467,2239.2,2238.9,0.44675]
[1725680317377,3.2078,2239.3,2238.8,3.9635]
[1725680317574,3.65442,2239.6,2239.3,0.44666]
[1725680317786,3.65442,2239.6,2239.4,1.1302]
[1725680318988,3.65443,2239.6,2239.4,1.1302]
[1725680320281,0.44663,2239.6,2239.4,1.1302]
[1725680320476,3.2078,2239.5,2239.4,1.1302]
[1725680320783,3.2078,2239.6,2239.4,1.1302]
[1725680321091,3.2078,2239.6,2239.5,0.44663]
[1725680323187,3.2078,2239.7,2239.5,0.44663]
[1725680323486,0.44656,2239.9,2239.7,0.44658]
[1725680323690,0.44656,2239.9,2239.8,1.1124]
[1725680327080,3.65436,2239.9,2239.8,1.1124]
[1725680327689,3.65436,2239.9,2239.8,0.7455]
[1725680327892,0.44662,2239.6,2239.4,1.58445]
[1725680328193,0.44661,2239.7,2239.4,1.58445]
[1725680328790,0.44661,2239.7,2239.5,0.44663]
[1725680330390,4.32422,2239.9,2239.5,0.44663]
[1725680330391,0.44659,2239.8,2239.5,0.44663]
[1725680330988,0.44659,2239.8,2239.6,0.44661]
[1725680331187,0.44659,2239.7,2239.5,0.44662]
[1725680333188,3.2078,2239.9,2239.4,1.1378]
[1725680333493,0.44661,2239.7,2239.5,0.44663]
[1725680333891,0.82641,2239.7,2239.5,0.44663]
[1725680335788,0.44661,2239.6,2239.4,1.58444]
[1725680336389,0.82641,2239.7,2239.5,0.44663]
[1725680336593,0.44661,2239.7,2239.5,0.44663]
[1725680337696,0.44661,2239.6,2239.5,0.44663]
[1725680338695,0.44661,2239.7,2239.5,0.44663]
[1725680340092,0.44661,2239.6,2239.5,0.44663]
[1725680340397,0.44658,2239.8,2239.6,0.4466]
[1725680340894,0.44658,2239.8,2239.7,0.3844]
[1725680341697,0.44658,2239.8,2239.7,0.83099]
[1725680342399,0.44658,2239.8,2239.7,0.3844]
[1725680342603,4.8674,2239.9,2239.7,0.83099]
[1725680342901,0.44658,2239.8,2239.7,0.3844]
[1725680345293,0.44658,2239.8,2239.7,0.83099]
[1725680345494,4.94437,2239.9,2239.7,0.83099]
[1725680345693,4.94437,2239.9,2239.8,0.7674]
[1725680348700,1.73657,2239.9,2239.8,0.7674]
[1725680350198,0.44657,2239.9,2239.8,0.7674]
[1725680350396,0.21954151,2240.1,2239.8,0.7674]
[1725680350596,4.9443,2240.2,2240.0,0.44652]
[1725680350798,4.9443,2240.2,2240.1,0.3853]
[1725680352906,6.06055,2240.2,2240.1,0.3853]
[1725680353099,0.44655,2240.0,2239.9,0.82946]
[1725680353806,0.44652,2240.1,2239.9,0.82946]
[1725680355214,1.29,2240.2,2240.1,0.44652]
[1725680355403,1.11618,2240.4,2239.9,4.8807]
[1725680355404,0.44647,2240.4,2239.9,4.8807]
[1725680355704,0.44647,2240.4,2240.2,0.44648]
[1725680355906,0.44647,2240.4,2240.3,1.1681]
[1725680359512,2.35055963,2240.8,2240.3,6.9213]
[1725680359706,0.44642,2240.6,2240.4,0.44644]
[1725680360014,0.44644,2240.5,2240.3,1.1681]
[1725680360514,0.44643,2240.6,2240.4,0.44645]
[1725680361309,1.20191,2240.7,2240.5,0.44644]
[1725680361502,0.7555,2240.7,2240.5,0.44644]
[1725680362714,1.1161,2240.5,2240.1,0.44651]
[1725680362900,0.44648,2240.3,2240.1,0.44651]
[1725680363206,1.6613,2240.4,2240.1,0.44651]
[1725680363411,0.3662,2240.2,2240.1,0.44651]
[1725680365018,0.3662,2240.2,2240.1,0.81821]
[1725680366113,0.44652,2240.1,2240.0,0.3905]
[1725680368811,0.46294065,2240.1,2240.0,0.3905]
[1725680369123,0.44652,2240.1,2240.0,0.3905]
[1725680369418,0.46294049,2240.1,2240.0,0.3905]
[1725680369623,0.4629405,2240.1,2240.0,0.3905]
[1725680369914,0.44652,2240.1,2240.0,0.3905]
[1725680370116,0.46294074,2240.1,2240.0,0.3905]
[1725680370317,0.44652,2240.1,2240.0,0.3905]
[1725680370515,0.46294051,2240.1,2240.0,0.3905]
[1725680370914,0.44652,2240.1,2240.0,0.3905]
[1725680371410,0.44654,2240.0,2239.9,0.3717]
[1725680371816,6.2978,2240.5,2239.9,4.8357]
[1725680372115,0.44649,2240.3,2240.1,0.44651]
[1725680372321,0.44649,2240.3,2240.2,0.7375]
[1725680372623,0.44649,2240.3,2240.2,1.1149]
[1725680387323,3.2078,2240.5,2240.2,5.5789]
[1725680387525,0.44646,2240.4,2240.2,1.56138]
[1725680387832,3.65424,2240.5,2240.3,0.44646]
[1725680390635,0.44644,2240.5,2240.3,0.44646]
[1725680391429,2.78892,2240.7,2240.4,0.44645]
[1725680391629,0.46283746,2240.6,2240.5,0.3906]
[1725680393226,0.44642,2240.6,2240.5,0.3906]
[1725680400244,0.4464,2240.7,2240.5,0.3906]
[1725680400454,0.44639,2240.8,2240.6,0.8183]
[1725680400750,0.44638,2240.8,2240.6,1.2019]
[1725680401538,0.44638,2240.8,2240.6,0.7555]
[1725680401539,0.4464,2240.7,2240.6,0.7555]
[1725680401745,0.4464,2240.7,2240.5,0.3906]
[1725680401746,9.36911756,2240.7,2240.1,1.16519323]
[1725680401946,3.6543,2240.2,2240.1,1.16519323]
[1725680402254,3.6543,2240.2,2240.0,1.61172323]
[1725680402949,0.44652,2240.1,2239.9,2.75744323]
[1725680404048,0.44654,2240.0,2239.9,1.93069323]
[1725680404246,0.83574,2240.0,2239.9,0.3719]
[1725680405253,0.83574,2240.0,2239.7,1.16519323]
[1725680405254,0.44658,2239.8,2239.7,1.16519323]
[1725680405554,0.44658,2239.8,2239.7,1.52979323]
[1725680406255,0.44658,2239.8,2239.7,0.3646]
[1725680406451,3.65438,2239.8,2239.7,0.3646]
[1725680406651,0.44661,2239.6,2239.5,1.16519323]
[1725680407052,0.44661,2239.6,2239.4,2.50928985]
[1725680407053,0.44661,2239.6,2239.4,2.37334323]
[1725680408050,3.65443,2239.5,2239.4,1.16519323]
[1725680408250,0.44665,2239.4,2239.2,0.3646]
[1725680408553,0.44666,2239.4,2239.2,0.3646]
[1725680412152,3.2078,2239.5,2239.3,5.7556]
[1725680412354,0.44656,2239.9,2239.4,1.29]
[1725680412563,4.03684,2240.0,2239.7,0.44659]
[1725680412753,8.68642639,2240.0,2239.8,0.82277]
[1725680413057,3.65434,2240.0,2239.8,0.82277]
[1725680413253,3.65434,2240.0,2239.9,0.3827]
[1725680418362,3.67076214,2240.0,2239.9,0.3827]
[1725680418559,3.67076329,2240.0,2239.9,0.3827]
[1725680419555,3.65434,2240.0,2239.9,0.3827]
[1725680420056,0.44656,2239.9,2239.8,0.3762]
[1725680425855,0.44662,2239.6,2239.5,0.3996]
[1725680426053,3.65442,2239.6,2239.5,0.3996]
[1725680427757,3.2078,2239.9,2239.5,4.8644]
[1725680427957,3.65435,2240.0,2239.7,0.44658]
[1725680428158,0.44656,2239.9,2239.8,0.3902]
[1725680428353,0.44656,2239.9,2239.8,0.7713]
[1725680431763,3.65435,2240.0,2239.8,1.21788]
[1725680432271,3.65435,2240.0,2239.9,0.3957]
[1725680436072,0.44656,2239.9,2239.8,0.7713]
[1725680436473,0.83936,2239.9,2239.8,1.21788]
[1725680436668,0.44656,2239.9,2239.8,1.21788]
[1725680438174,3.2078,2240.0,2239.8,1.21788]
[1725680438570,3.65435,2240.0,2239.8,1.21788]
[1725680438874,3.65435,2240.0,2239.8,0.7713]
[1725680438875,0.44656,2239.9,2239.8,0.7713]
[1725680439169,3.2078,2240.3,2240.1,0.44651]
[1725680439374,3.65429,2240.3,2240.2,0.7352]
[1725680439568,3.65429,2240.3,2239.9,0.83995]
[1725680439569,0.44652,2240.1,2239.9,0.83995]
[1725680439867,0.44652,2240.1,2240.0,0.3642]
[1725680440071,0.44651,2240.2,2240.0,0.3642]
[1725680440271,0.44651,2240.2,2240.0,0.81073]
[1725680440469,0.44651,2240.2,2240.0,0.81074]
[1725680440675,0.44652,2240.1,2240.0,0.3642]
[1725680441275,0.44651,2240.2,2240.0,0.3642]
[1725680441470,0.44654,2240.0,2239.9,0.3934]
[1725680441677,1.1164,2239.9,2239.6,0.787]
[1725680441874,3.2078,2239.7,2239.4,0.3607]
[1725680442079,0.44663,2239.6,2239.3,0.44667]
[1725680442283,3.2078,2239.4,2239.3,0.80737]
[1725680442578,0.44664,2239.5,2239.3,0.3607]
[1725680442980,3.65444,2239.5,2239.3,0.3607]
[1725680444178,3.2078,2239.5,2239.3,0.80737]
[1725680444680,3.65444,2239.5,2239.3,0.3607]
[1725680446783,0.44665,2239.4,2239.3,0.3607]
[1725680447084,0.44665,2239.4,2239.2,0.7584]
[1725680447277,0.84145,2239.4,2239.2,0.7584]
[1725680447477,0.3948,2239.4,2239.2,1.20509]
[1725680448093,0.84146,2239.4,2239.2,1.20509]
[1725680448583,3.65445,2239.5,2239.2,1.20509]
[1725680450984,0.44666,2239.4,2239.2,1.20509]
[1725680451393,3.65445,2239.5,2239.3,0.44667]
[1725680451990,0.44665,2239.4,2239.3,0.44667]
[1725680452184,3.65445,2239.5,2239.3,0.44667]
[1725680455193,3.2078,2239.5,2239.4,0.44665]
[1725680456088,0.44662,2239.6,2239.4,0.44665]
[1725680456288,3.65442,2239.6,2239.5,0.3992]
[1725680456495,3.65442,2239.6,2239.5,0.7982]
[1725680458906,3.65442,2239.6,2239.5,1.24483]
[1725680459607,3.65442,2239.6,2239.5,0.7982]
[1725680463514,0.44662,2239.6,2239.5,0.7982]
[1725680464009,3.65442,2239.6,2239.5,0.7982]
[1725680464210,3.2078,2239.6,2239.5,1.24483]
[1725680464404,2.79710963,2240.0,2239.8,0.44658]
[1725680464609,0.44655,2240.0,2239.9,1.61916]
[1725680464810,0.44655,2240.0,2239.9,1.1726]
[1725680465111,0.44653,2240.1,2239.9,1.61916]
[1725680465301,0.44652,2240.1,2239.9,1.61916]
[1725680465503,0.44653,2240.1,2239.9,1.61916]
[1725680466013,0.44654,2240.0,2239.9,1.1726]
[1725680466308,0.44654,2240.0,2239.9,1.61916]
[1725680466514,0.44654,2240.0,2239.9,1.1726]
[1725680467706,0.44654,2240.0,2239.9,1.61916]
[1725680470309,4.8808,2240.2,2240.0,0.44652]
[1725680470310,3.6543,2240.2,2240.0,0.44652]
[1725680470512,0.44652,2240.1,2240.0,0.44652]
[1725680472516,0.3862,2240.2,2240.0,0.44652]
[1725680472517,4.04051,2240.2,2240.0,0.44652]
[1725680472813,0.44652,2240.1,2240.0,0.44652]
[1725680473014,0.44652,2240.1,2239.9,1.61914]
[1725680473312,0.44653,2240.1,2239.9,1.61914]
[1725680473509,0.44654,2240.0,2239.9,1.61914]
[1725680473912,0.44653,2240.1,2239.9,6.08314]
[1725680474115,0.44653,2240.1,2239.9,1.61914]
[1725680474709,3.65431,2240.2,2240.0,0.44652]
[1725680475016,3.2078,2240.2,2240.1,0.44652]
[1725680475819,3.2078,2240.2,2240.1,4.91052]
[1725680476008,0.44646,2240.4,2240.2,0.4465]
[1725680476215,0.44646,2240.4,2240.3,1.1529]
[1725680476715,0.44646,2240.4,2240.3,1.59938]
[1725680476920,0.46287813,2240.4,2240.3,1.59938]
[1725680478120,0.46287813,2240.4,2240.3,1.1529]
[1725680479517,0.46287823,2240.4,2240.3,1.1529]
[1725680479713,0.46287833,2240.4,2240.3,1.1529]
[1725680479914,0.01641833,2240.4,2240.3,1.59938]
[1725680480421,0.01641833,2240.4,2240.3,6.06258]
[1725680480622,0.44646,2240.5,2240.4,0.44646]
[1725680480821,0.4628774,2240.5,2240.4,0.44646]
[1725680481522,0.4628774,2240.5,2240.3,1.59936]
[1725680481722,0.0164174,2240.4,2240.3,1.59936]
[1725680482025,0.44646,2240.5,2240.3,1.59936]
[1725680482212,0.01641763,2240.4,2240.3,1.59936]
[1725680482419,0.01641749,2240.4,2240.3,1.59936]
[1725680482614,0.01641749,2240.4,2240.3,6.06256]
[1725680482921,0.01641749,2240.4,2240.3,1.59936]
[1725680483116,0.44646,2240.5,2240.3,1.59936]
[1725680483318,0.01641751,2240.4,2240.3,1.59936]
[1725680483521,0.44646,2240.5,2240.3,1.59936]
[1725680483823,0.01641757,2240.4,2240.3,1.59936]
[1725680484022,0.44646,2240.5,2240.3,1.59936]
[1725680485619,0.44646,2240.4,2240.3,1.1529]
[1725680486026,0.44645,2240.5,2240.3,1.59938]
[1725680487221,0.3644,2240.7,2240.4,0.44646]
[1725680487422,0.44642,2240.6,2240.5,0.44643]
[1725680487624,0.44644,2240.5,2240.4,0.44645]
[1725680488123,0.44643,2240.6,2240.4,0.44645]
[1725680489828,0.44644,2240.5,2240.4,0.44645]
[1725680490025,0.44643,2240.6,2240.4,0.44645]
[1725680490730,0.44643,2240.6,2240.5,0.44644]
[1725680491622,0.44643,2240.6,2240.3,1.1529]
[1725680491623,0.44643,2240.6,2240.4,0.44644]
[1725680495028,0.44644,2240.5,2240.4,0.44644]
[1725680497524,0.44642,2240.6,2240.5,0.44644]
[1725680497727,0.44644,2240.5,2240.4,0.44644]
[1725680501730,0.44644,2240.5,2240.3,1.1529]
[1725680501935,0.44644,2240.5,2240.4,0.44646]
[1725680502128,0.44644,2240.5,2240.3,1.59936]
[1725680504436,0.44644,2240.5,2240.4,0.44646]
[1725680505723,2.07328859,2240.7,2240.3,1.1529]
[1725680505724,0.44646,2240.4,2240.3,1.1529]
[1725680505929,0.81416,2240.4,2240.3,1.1529]
[1725680512942,0.44645,2240.5,2240.3,1.59938]
[1725680513543,0.44642,2240.6,2240.4,0.44645]
[1725680515246,0.44642,2240.6,2240.5,0.44644]
[1725680515737,0.44642,2240.6,2240.4,0.44644]
[1725680516441,0.44642,2240.6,2240.5,0.44644]
[1725680516834,0.44642,2240.6,2240.4,0.44644]
[1725680521734,0.61527859,2240.7,2240.3,1.1529]
[1725680521735,0.44644,2240.5,2240.3,1.1529]
[1725680521938,0.44644,2240.5,2240.4,0.44646]
[1725680522243,0.44643,2240.6,2240.4,0.44646]
[1725680522436,0.44643,2240.6,2240.5,0.44644]
[1725680522637,0.44643,2240.6,2240.4,0.44644]
[1725680522839,0.44643,2240.6,2240.5,0.44644]
[1725680523037,0.44643,2240.6,2240.4,0.44644]
[1725680523240,0.44643,2240.6,2240.3,1.1529]
[1725680523443,0.44643,2240.6,2240.4,0.44644]
[1725680523839,0.44643,2240.6,2240.5,0.44644]
[1725680526150,0.44643,2240.6,2240.4,0.44644]
[1725680527049,0.44643,2240.6,2240.5,0.44644]
[1725680528142,2.35055963,2241.0,2240.5,5.7532]
[1725680528451,0.44638,2240.8,2240.6,0.8113]
[1725680529748,0.66793164,2240.8,2240.6,0.8113]
[1725680530846,0.44642,2240.6,2240.4,3.35943308]
[1725680531046,0.44644,2240.5,2240.4,0.3812]
[1725680536453,0.46285777,2240.5,2240.4,0.3812]
[1725680537052,0.44644,2240.5,2240.4,0.3812]
[1725680537251,0.4628578,2240.5,2240.4,0.3812]
[1725680538554,0.46285749,2240.5,2240.4,0.3812]
[1725680539154,0.44646,2240.4,2240.3,0.7554]
[1725680539354,0.82646,2240.4,2240.3,0.7554]
[1725680539859,0.38,2240.4,2240.3,1.20188]
[1725680540249,0.44644,2240.5,2240.3,1.20188]
[1725680543158,0.44644,2240.5,2240.3,2.36707323]
[1725680544057,0.44644,2240.5,2240.3,1.92059323]
[1725680544252,0.44644,2240.5,2240.4,0.44646]
[1725680544757,0.44644,2240.5,2240.3,2.36705323]
[1725680545355,1.04556836,2240.6,2240.4,0.44646]
[1725680545658,0.59913836,2240.6,2240.4,0.44646]
[1725680547051,0.44644,2240.5,2240.4,0.44646]
[1725680551661,1.04556836,2240.6,2240.4,0.44646]
[1725680552057,0.44644,2240.5,2240.4,0.44646]
[1725680554162,2.40586,2241.0,2240.3,1.92059323]
[1725680554351,1.52113614,2240.9,2240.5,0.44643]
[1725680554559,0.44641,2240.7,2240.5,0.44643]
[1725680554764,0.22428796,2240.7,2240.4,0.44644]
[1725680554962,6.52912196,2240.9,2240.3,1.92059323]
[1725680554963,6.52912196,2240.9,2240.5,0.44643]
[1725680555163,0.44641,2240.7,2240.5,0.44643]
[1725680555363,0.6654269,2240.7,2240.5,0.44643]
[1725680555760,0.6654269,2240.7,2240.6,0.3819]
[1725680557660,0.44643,2240.6,2240.4,0.44644]
[1725680557862,0.84343,2240.6,2240.4,0.84314]
[1725680558364,1.06336754,2240.6,2240.4,0.84314]
[1725680559065,1.06336754,2240.6,2240.5,0.44644]
[1725680559453,0.84343,2240.6,2240.5,0.44644]
[1725680559659,1.06906309,2240.6,2240.5,0.44644]
[1725680560962,0.44644,2240.5,2240.4,0.84315]
[1725680561262,0.44644,2240.5,2240.4,0.3967]
[1725680561854,1.06907309,2240.6,2240.4,0.3967]
[1725680562059,1.06907309,2240.6,2240.4,0.84315]
[1725680563661,0.84344,2240.6,2240.4,0.84315]
[1725680563865,0.44644,2240.6,2240.4,0.84315]
[1725680567665,0.44644,2240.6,2240.4,0.3967]
[1725680567879,0.4464,2240.7,2240.6,0.44642]
[1725680568065,0.46281589,2240.7,2240.6,0.44642]